bitfinex/quotes_BTCUSD_20241001
["timestamp","ask_amount","ask_price","bid_price","bid_amount"]
[1727796965742,0.23945404,62635.0,62627.0,0.159675]
[1727796966481,0.23945404,62635.0,62633.0,0.159659]
[1727796966700,0.23945404,62635.0,62634.0,0.159657]
[1727796966944,0.39910404,62637.0,62632.0,0.159661]
[1727796967178,0.159656,62635.0,62629.0,0.319339]
[1727796967404,0.159669,62630.0,62625.0,0.159679]
[1727796967642,0.159669,62630.0,62621.0,0.23945404]
[1727796967643,0.32730413,62630.0,62621.0,0.23945404]
[1727796967898,0.000822,62638.0,62628.0,0.23945404]
[1727796968137,0.000822,62638.0,62637.0,0.15965]
[1727796968395,0.00036554,62638.0,62637.0,0.15965]
[1727796969593,0.00891174,62638.0,62637.0,0.4161078]
[1727796969818,0.00891174,62638.0,62637.0,0.8023398]
[1727796970051,0.00036554,62638.0,62637.0,0.5992818]
[1727796970518,0.00036554,62638.0,62637.0,0.4161078]
[1727796970743,0.00036554,62638.0,62637.0,0.25965]
[1727796971486,0.00036554,62638.0,62637.0,0.15965]
[1727796972022,0.00036554,62638.0,62637.0,0.25965]
[1727796972028,0.00036554,62638.0,62637.0,0.26284235]
[1727796972275,0.00036554,62638.0,62637.0,0.17265]
[1727796972499,0.00036554,62638.0,62637.0,0.013]
[1727796972742,0.00036554,62638.0,62629.0,0.319336]
[1727796972988,0.00036554,62638.0,62623.0,0.079]
[1727796972989,0.06506001,62638.0,62627.0,0.319348]
[1727796973224,0.06506001,62638.0,62623.0,0.079]
[1727796973225,0.22470801,62638.0,62637.0,0.013]
[1727796973475,0.23981958,62638.0,62637.0,0.013]
[1727796973727,0.23981958,62638.0,62632.0,0.159661]
[1727796973728,0.159651,62637.0,62632.0,0.159661]
[1727796973962,0.319304,62637.0,62623.0,0.08886659]
[1727796974206,0.32730413,62626.0,62617.0,0.319397]
[1727796974473,0.32730413,62626.0,62617.0,0.3194]
[1727796974736,0.48698313,62626.0,62614.0,0.23945404]
[1727796974965,0.159673,62628.0,62623.0,0.159683]
[1727796975201,0.23945404,62627.0,62616.0,0.00319374]
[1727796975452,0.159675,62627.0,62616.0,0.00319374]
[1727796975680,0.39914104,62623.0,62614.0,0.0097768]
[1727796975919,0.33030413,62626.0,62621.0,0.159689]
[1727796976134,0.159681,62625.0,62621.0,0.15969]
[1727796976406,0.32730413,62626.0,62612.0,0.001644]
[1727796976642,0.159688,62622.0,62617.0,0.319397]
[1727796976933,0.32730413,62616.0,62612.0,0.001644]
[1727796977420,0.32730413,62616.0,62614.0,0.159707]
[1727796977675,0.32730413,62616.0,62613.0,0.159709]
[1727796977922,0.32730413,62616.0,62612.0,0.001644]
[1727796977923,0.48700813,62616.0,62612.0,0.001644]
[1727796978394,0.32730413,62616.0,62615.0,0.159706]
[1727796978624,0.159694,62620.0,62612.0,0.001644]
[1727796978625,0.56675817,62622.0,62612.0,0.001644]
[1727796978871,0.15971,62614.0,62612.0,0.001644]
[1727796979097,0.319409,62616.0,62612.0,0.001644]
[1727796979098,0.159711,62613.0,62612.0,0.001644]
[1727796979577,0.319405,62617.0,62612.0,0.001644]
[1727796979814,0.4794,62632.0,62616.0,0.159702]
[1727796979815,0.23945404,62619.0,62616.0,0.159702]
[1727796980323,0.319359,62626.0,62618.0,0.159697]
[1727796980324,0.39914304,62622.0,62618.0,0.159697]
[1727796980557,0.32730413,62628.0,62612.0,0.001644]
[1727796980794,0.32730413,62628.0,62617.0,0.3194]
[1727796981053,0.23981958,62638.0,62624.0,0.319366]
[1727796981301,0.23945404,62629.0,62628.0,0.159672]
[1727796981534,0.159667,62631.0,62627.0,0.159674]
[1727796981759,0.64659813,62639.0,62618.0,0.075]
[1727796981760,0.159664,62632.0,62618.0,0.075]
[1727796982015,0.15967,62629.0,62624.0,0.319364]
[1727796982256,0.15967,62629.0,62618.0,0.075]
[1727796982257,0.56675817,62628.0,62618.0,0.319396]
[1727796982505,0.159688,62622.0,62618.0,0.159697]
[1727796982759,0.32730413,62628.0,62617.0,0.00989903]
[1727796983005,0.32730413,62628.0,62618.0,0.47909]
[1727796983006,0.159686,62623.0,62618.0,0.47909]
[1727796983258,0.39196714,62628.0,62615.0,0.319409]
[1727796983494,0.39196714,62628.0,62610.0,0.032]
[1727796983495,0.159686,62623.0,62619.0,0.159695]
[1727796983731,0.159686,62623.0,62610.0,0.032]
[1727796983732,0.159686,62623.0,62618.0,0.319396]
[1727796983976,0.159686,62623.0,62619.0,0.159695]
[1727796984219,0.01196242,62622.0,62618.0,0.323396]
[1727796984471,0.01196242,62622.0,62621.0,0.15969]
[1727796984720,0.32730413,62633.0,62625.0,0.159678]
[1727796984952,0.39591184,62631.0,62627.0,0.159674]
[1727796985192,0.15966,62633.0,62629.0,0.159667]
[1727796985468,0.39912004,62631.0,62618.0,0.004]
[1727796985699,0.32730413,62634.0,62628.0,0.319343]
[1727796985921,0.32730413,62634.0,62631.0,0.159663]
[1727796986158,0.159663,62632.0,62628.0,0.159672]
[1727796986652,0.48696213,62634.0,62628.0,0.319341]
[1727796986903,0.48696113,62634.0,62628.0,0.319341]
[1727796987204,0.32730413,62634.0,62631.0,0.159664]
[1727796987467,0.00036554,62638.0,62630.0,0.319333]
[1727796987702,0.00036554,62638.0,62637.0,0.15965]
[1727796988227,0.16001254,62638.0,62635.0,0.159654]
[1727796988484,0.00036554,62638.0,62628.0,0.319341]
[1727796988747,0.00036554,62638.0,62631.0,0.159664]
[1727796988748,0.32730413,62636.0,62631.0,0.159664]
[1727796988999,0.159663,62632.0,62628.0,0.15967]
[1727796989223,0.32730413,62636.0,62623.0,0.00970115]
[1727796989459,0.159661,62633.0,62629.0,0.159669]
[1727796989697,0.319311,62635.0,62629.0,0.159669]
[1727796989931,0.15966,62633.0,62629.0,0.159669]
[1727796990156,0.64661113,62636.0,62628.0,0.001]
[1727796990392,0.15967,62629.0,62628.0,0.001]
[1727796990660,0.159678,62626.0,62622.0,0.159687]
[1727796990907,0.32730413,62626.0,62616.0,0.319405]
[1727796991171,0.32730413,62626.0,62607.0,0.0771]
[1727796991421,0.319387,62620.0,62612.0,0.25118607]
[1727796991660,0.32730413,62616.0,62612.0,0.001644]
[1727796991911,0.159711,62613.0,62612.0,0.001644]
[1727796992188,0.48700913,62616.0,62612.0,0.161357]
[1727796992419,0.159711,62613.0,62612.0,0.001644]
[1727796992659,0.26429912,62613.0,62612.0,0.001644]
[1727796992913,0.3161688,62613.0,62612.0,0.001644]
[1727796993135,0.3161688,62613.0,62612.0,0.004644]
[1727796993618,0.3161688,62613.0,62612.0,0.001644]
[1727796995713,0.3211688,62613.0,62612.0,0.001644]
[1727796996605,0.01,62617.0,62612.0,0.001644]
[1727796996606,0.0714389,62625.0,62612.0,0.001644]
[1727796996857,0.0099013,62637.0,62636.0,0.159652]
[1727796997100,0.0099013,62637.0,62629.0,0.319338]
[1727796997101,0.23945404,62641.0,62637.0,0.15965]
[1727796997537,0.23945404,62641.0,62626.0,0.1]
[1727796997540,0.34491695,62638.0,62626.0,0.1]
[1727796997823,0.34491695,62638.0,62613.0,0.2943]
[1727796997824,0.32766967,62638.0,62629.0,0.23945404]
[1727796998089,0.32730413,62628.0,62618.0,0.032]
[1727796998317,0.32730413,62628.0,62627.0,0.23945404]
[1727796998585,0.32730413,62633.0,62618.0,0.032]
[1727796998802,0.0723216,62632.0,62624.0,0.159681]
[1727796999276,0.01436408,62631.0,62624.0,0.159681]
[1727796999498,0.01436408,62631.0,62612.0,0.002644]
[1727796999499,0.32730413,62627.0,62613.0,0.0804]
[1727796999725,0.32730413,62627.0,62612.0,0.322071]
[1727796999726,0.32730413,62619.0,62618.0,0.159696]
[1727796999964,0.32730413,62619.0,62612.0,0.322071]
[1727796999965,0.34167135,62619.0,62617.0,0.159699]
[1727797000199,0.34167135,62619.0,62615.0,0.159704]
[1727797000464,0.01436722,62619.0,62614.0,0.319416]
[1727797000750,0.01436722,62619.0,62617.0,0.159698]
[1727797000977,0.32730413,62624.0,62612.0,0.001644]
[1727797001223,0.01426386,62618.0,62617.0,0.159701]
[1727797001441,0.01426386,62618.0,62614.0,0.319414]
[1727797001442,0.04837619,62623.0,62614.0,0.319414]
[1727797001670,0.32730413,62624.0,62618.0,0.319393]
[1727797001890,0.32730413,62624.0,62620.0,0.159693]
[1727797001891,0.01429284,62622.0,62620.0,0.159693]
[1727797002117,0.01429864,62623.0,62622.0,0.159688]
[1727797002338,0.32730413,62624.0,62622.0,0.159688]
[1727797002570,0.1564578,62627.0,62622.0,0.159688]
[1727797002802,0.32730413,62629.0,62622.0,0.159688]
[1727797002803,0.1564578,62626.0,62622.0,0.159688]
[1727797003051,0.32730413,62634.0,62621.0,0.23945404]
[1727797003293,0.1564578,62633.0,62622.0,0.319375]
[1727797003509,0.1564578,62633.0,62625.0,0.159679]
[1727797003782,0.1564578,62633.0,62613.0,0.23945404]
[1727797003783,0.1564578,62633.0,62619.0,0.159695]
[1727797003993,0.001,62626.0,62625.0,0.15968]
[1727797005169,0.001,62626.0,62625.0,0.23698]
[1727797005377,0.001,62626.0,62625.0,0.34016764]
[1727797005590,0.001,62626.0,62625.0,0.33698]
[1727797005864,0.32730413,62637.0,62625.0,0.1]
[1727797006087,0.32730413,62632.0,62631.0,0.159665]
[1727797006539,0.00036554,62638.0,62637.0,0.15965]
[1727797006967,0.00036554,62638.0,62634.0,0.159656]
[1727797007208,0.32730413,62636.0,62631.0,0.319327]
[1727797007455,0.32730413,62636.0,62630.0,0.23945404]
[1727797007456,0.32730413,62636.0,62633.0,0.159659]
[1727797007659,0.00036554,62638.0,62637.0,0.15965]
[1727797008078,0.00036554,62638.0,62636.0,0.159651]
[1727797008299,0.32730413,62637.0,62636.0,0.159652]
[1727797008517,0.00036554,62638.0,62637.0,0.15965]
[1727797009420,0.00036554,62638.0,62637.0,0.4481078]
[1727797010361,0.00036554,62638.0,62637.0,0.4531078]
[1727797011050,0.0148165,62638.0,62637.0,0.4481078]
[1727797011301,0.00036554,62638.0,62637.0,0.29165]
[1727797011525,0.0147992,62638.0,62637.0,0.29165]
[1727797011748,0.00036554,62638.0,62637.0,0.29165]
[1727797011970,0.00036554,62638.0,62637.0,0.19165]
[1727797012188,0.01486233,62638.0,62637.0,0.15965]
[1727797012651,0.01486233,62638.0,62635.0,0.319308]
[1727797012860,0.01486233,62638.0,62629.0,0.032]
[1727797012861,0.01486233,62638.0,62637.0,0.014]
[1727797013071,0.01586233,62638.0,62637.0,0.17365]
[1727797013282,0.01586233,62638.0,62637.0,0.014]
[1727797013512,0.03988409,62638.0,62637.0,0.15965]
[1727797013738,0.04088409,62638.0,62637.0,0.006]
[1727797014010,0.0948725,62638.0,62637.0,0.006]
[1727797014461,0.04088409,62638.0,62637.0,0.006]
[1727797015360,0.04088409,62638.0,62637.0,0.15965]
[1727797015361,0.03988409,62638.0,62637.0,0.15965]
[1727797015801,0.00036554,62638.0,62637.0,0.15965]
[1727797016073,0.0147686,62638.0,62637.0,0.15965]
[1727797016292,0.00036554,62638.0,62637.0,0.15965]
[1727797016759,0.00636554,62638.0,62637.0,0.16065]
[1727797017213,0.00636554,62638.0,62637.0,0.15965]
[1727797017214,0.01477302,62638.0,62637.0,0.15965]
[1727797017445,0.03979459,62638.0,62637.0,0.15965]
[1727797018583,0.01477302,62638.0,62637.0,0.16265]
[1727797019510,0.01477302,62638.0,62637.0,0.34275]
[1727797019726,0.01477302,62638.0,62637.0,0.4992078]
[1727797019931,0.01477302,62638.0,62637.0,0.4962078]
[1727797020386,0.01577302,62638.0,62637.0,0.5032078]
[1727797020617,0.01577302,62638.0,62637.0,0.34675]
[1727797020841,0.01577302,62638.0,62637.0,0.33975]
[1727797020842,0.01477302,62638.0,62637.0,0.33975]
[1727797021054,0.01577302,62638.0,62637.0,0.35275]
[1727797021493,0.01572302,62638.0,62637.0,0.17265]
[1727797021734,0.01472302,62638.0,62635.0,0.191653]
[1727797022004,0.01472302,62638.0,62636.0,0.159651]
[1727797022223,0.01472302,62638.0,62632.0,0.319321]
[1727797022488,0.01472302,62638.0,62635.0,0.001644]
[1727797022734,0.39910604,62636.0,62635.0,0.001644]
[1727797022972,0.159652,62636.0,62635.0,0.001644]
[1727797023211,0.1740839,62636.0,62635.0,0.001644]
[1727797023698,0.48698848,62636.0,62635.0,0.001644]
[1727797024193,0.3305417,62636.0,62635.0,0.001644]
[1727797024676,0.1740839,62636.0,62635.0,0.001644]
[1727797025154,0.1870839,62636.0,62635.0,0.002644]
[1727797025392,0.0274319,62636.0,62635.0,0.002644]
[1727797025603,0.1740839,62636.0,62635.0,0.001644]
[1727797026064,0.0224319,62636.0,62635.0,0.002644]
[1727797026337,0.1820839,62636.0,62635.0,0.002644]
[1727797027065,0.82229261,62636.0,62635.0,0.002644]
[1727797027304,0.50938803,62636.0,62635.0,0.002644]
[1727797027548,0.50138803,62636.0,62635.0,0.001644]
[1727797028010,0.1740839,62636.0,62635.0,0.001644]
[1727797028253,0.1740839,62636.0,62635.0,0.002644]
[1727797028254,0.1850839,62636.0,62635.0,0.002644]
[1727797028723,0.0144319,62636.0,62635.0,0.001644]
[1727797029008,0.0144319,62636.0,62635.0,0.161299]
[1727797029229,0.008,62636.0,62635.0,0.2406917]
[1727797029517,0.008,62636.0,62635.0,0.4971495]
[1727797029716,0.008,62636.0,62635.0,0.4939568]
[1727797029978,0.008,62636.0,62635.0,0.102644]
[1727797030454,0.008,62636.0,62635.0,0.262299]
[1727797030709,0.008,62636.0,62635.0,0.102644]
[1727797030959,0.008,62636.0,62635.0,0.002644]
[1727797031443,0.09076045,62636.0,62635.0,0.002644]
[1727797031657,0.25716959,62636.0,62635.0,0.001644]
[1727797032117,0.41362739,62636.0,62635.0,0.001644]
[1727797032605,0.17440914,62636.0,62635.0,0.001644]
[1727797033091,0.17940914,62636.0,62635.0,0.001644]
[1727797033367,0.33586694,62636.0,62635.0,0.001644]
[1727797033801,0.66317107,62636.0,62635.0,0.001644]
[1727797034030,0.66517107,62636.0,62635.0,0.001644]
[1727797034473,0.81461785,62636.0,62635.0,0.001644]
[1727797034933,0.82261785,62636.0,62635.0,0.002644]
[1727797035144,0.66617107,62636.0,62635.0,0.002644]
[1727797035423,0.66617107,62636.0,62635.0,0.001644]
[1727797035424,0.68319793,62636.0,62635.0,0.001644]
[1727797035641,0.69619793,62636.0,62635.0,0.002644]
[1727797036128,0.76393315,62636.0,62635.0,0.002644]
[1727797037008,0.75093315,62636.0,62635.0,0.001644]
[1727797037202,0.199436,62636.0,62635.0,0.001644]
[1727797038573,0.039784,62636.0,62635.0,0.001644]
[1727797038801,0.01475714,62636.0,62635.0,0.161299]
[1727797039028,0.02775714,62636.0,62635.0,0.162299]
[1727797039270,0.0277236,62636.0,62635.0,0.162299]
[1727797039709,0.0277236,62636.0,62635.0,0.4177568]
[1727797039710,0.0147236,62636.0,62635.0,0.4177568]
[1727797039929,0.00031554,62638.0,62637.0,0.25965]
[1727797040169,0.00031554,62638.0,62637.0,0.4161078]
[1727797042878,0.00131554,62638.0,62637.0,0.4241078]
[1727797046129,0.00131554,62638.0,62637.0,0.26765]
[1727797046352,0.00131554,62638.0,62637.0,0.16765]
[1727797047256,0.00031554,62638.0,62637.0,0.15965]
[1727797047502,0.00031554,62638.0,62637.0,0.4161078]
[1727797050024,0.00131554,62638.0,62637.0,0.4251078]
[1727797050263,0.00131554,62638.0,62637.0,0.6941078]
[1727797051443,0.00131554,62638.0,62637.0,1.05003561]
[1727797051661,0.00131554,62638.0,62637.0,1.07581056]
[1727797051876,0.00131554,62638.0,62637.0,0.98030232]
[1727797052118,0.00131554,62638.0,62637.0,1.07577433]
[1727797052351,0.00131554,62638.0,62637.0,0.98030232]
[1727797052574,0.00131554,62638.0,62637.0,1.09968762]
[1727797052815,0.29465271,62640.0,62639.0,0.308644]
[1727797053041,0.29465271,62640.0,62639.0,0.56982376]
[1727797053286,0.29465271,62640.0,62639.0,0.61750477]
[1727797053504,0.29465271,62640.0,62639.0,0.56982376]
[1727797053743,0.29465271,62640.0,62639.0,0.80900477]
[1727797054178,0.29465271,62640.0,62639.0,0.82300477]
[1727797054632,0.29465271,62640.0,62639.0,0.78547086]
[1727797054899,0.29465271,62640.0,62639.0,0.78347086]
[1727797055096,0.29465271,62640.0,62639.0,0.6807489]
[1727797055793,0.29465271,62640.0,62639.0,0.6657489]
[1727797056043,0.29465271,62640.0,62639.0,0.4892489]
[1727797056540,0.29465271,62640.0,62639.0,0.4402489]
[1727797057513,0.29465271,62640.0,62639.0,0.4262489]
[1727797058010,0.29547471,62640.0,62639.0,0.4392489]
[1727797058540,0.31066447,62640.0,62639.0,0.4392489]
[1727797059029,0.29547471,62640.0,62639.0,0.4392489]
[1727797059522,0.29547471,62640.0,62639.0,0.4262489]
[1727797059764,0.29547471,62640.0,62639.0,0.4672489]
[1727797060484,0.29547471,62640.0,62639.0,0.4582489]
[1727797060721,0.29547471,62640.0,62639.0,0.4722489]
[1727797061499,0.29547471,62640.0,62639.0,0.4872489]
[1727797061737,0.29547471,62640.0,62639.0,0.4892489]
[1727797062256,0.29547471,62640.0,62639.0,0.5713489]
[1727797062518,0.26261239,62640.0,62639.0,0.5573489]
[1727797062736,0.000121,62650.0,62639.0,0.5573489]
[1727797062970,0.000121,62650.0,62649.0,0.78038093]
[1727797063205,0.000121,62650.0,62649.0,0.78238093]
[1727797063446,0.000121,62650.0,62649.0,0.78038093]
[1727797063688,0.000121,62650.0,62649.0,0.78238093]
[1727797064174,0.000121,62650.0,62649.0,0.4160768]
[1727797064413,0.000121,62650.0,62649.0,0.4530768]
[1727797065134,0.000121,62650.0,62649.0,0.78038093]
[1727797066114,0.000121,62650.0,62649.0,0.47215597]
[1727797066817,0.000121,62650.0,62649.0,0.44015597]
[1727797068749,0.000121,62650.0,62649.0,0.34015597]
[1727797069956,0.000121,62650.0,62649.0,0.7994601]
[1727797070473,0.000121,62650.0,62649.0,0.47215597]
[1727797071896,0.000121,62650.0,62649.0,0.7994601]
[1727797072862,0.000121,62650.0,62649.0,0.47215597]
[1727797076640,0.000121,62650.0,62649.0,0.7994601]
[1727797076875,0.000121,62650.0,62649.0,0.8044601]
[1727797077585,0.000121,62650.0,62649.0,0.47715597]
[1727797077821,0.000121,62650.0,62649.0,0.47215597]
[1727797078294,0.000121,62650.0,62649.0,0.44015597]
[1727797078523,0.000121,62650.0,62649.0,0.173619]
[1727797079007,0.01120974,62650.0,62649.0,0.173619]
[1727797079264,0.000121,62650.0,62649.0,0.173619]
[1727797079488,0.000121,62650.0,62647.0,0.159624]
[1727797079707,0.000121,62650.0,62645.0,0.489034]
[1727797079931,0.000121,62650.0,62641.0,0.319276]
[1727797079932,0.01104325,62649.0,62641.0,0.319276]
[1727797080158,0.01104325,62649.0,62644.0,0.159631]
[1727797080639,0.01104325,62649.0,62638.0,0.00986714]
[1727797080640,0.01104325,62649.0,62648.0,0.159622]
[1727797081822,0.000121,62650.0,62649.0,0.159619]
[1727797083033,0.01112336,62650.0,62649.0,0.16963094]
[1727797083275,0.000121,62650.0,62649.0,0.16963094]
[1727797084004,0.000121,62650.0,62643.0,0.319268]
[1727797084260,0.000121,62650.0,62637.0,0.04923522]
[1727797084261,0.159737,62650.0,62649.0,0.002]
[1727797084506,0.65707752,62650.0,62649.0,0.002]
[1727797084721,0.49746152,62650.0,62640.0,0.161285]
[1727797084973,0.159627,62646.0,62640.0,0.001644]
[1727797085222,0.73357122,62650.0,62640.0,0.001644]
[1727797085509,0.319264,62644.0,62640.0,0.001644]
[1727797085773,0.159639,62641.0,62640.0,0.001644]
[1727797086261,0.17059468,62641.0,62640.0,0.001644]
[1727797086507,0.30270095,62641.0,62640.0,0.001644]
[1727797086750,0.159647,62638.0,62637.0,0.001644]
[1727797087019,0.67155113,62638.0,62637.0,0.001644]
[1727797087267,0.68253173,62638.0,62637.0,0.001644]
[1727797087487,0.90388964,62638.0,62637.0,0.001644]
[1727797087709,0.32730413,62630.0,62627.0,0.23814204]
[1727797087933,0.159672,62628.0,62627.0,0.23814204]
[1727797088170,0.159672,62628.0,62620.0,0.23945404]
[1727797088171,0.31935,62628.0,62620.0,0.23945404]
[1727797088402,0.319354,62627.0,62620.0,0.23945404]
[1727797088641,0.159678,62626.0,62620.0,0.23945404]
[1727797088898,0.159678,62626.0,62617.0,0.00989863]
[1727797088899,0.01077309,62626.0,62617.0,0.00989863]
[1727797089148,0.159699,62618.0,62613.0,0.04759122]
[1727797089367,0.48701413,62614.0,62612.0,0.001644]
[1727797089588,0.32730413,62614.0,62612.0,0.001644]
[1727797089845,0.01071601,62613.0,62612.0,0.001644]
[1727797090087,0.01071601,62613.0,62612.0,0.161357]
[1727797090322,0.159695,62620.0,62612.0,0.161357]
[1727797090556,0.23945404,62619.0,62612.0,0.001644]
[1727797090823,0.25014088,62619.0,62614.0,0.159708]
[1727797091059,0.001,62613.0,62612.0,0.161356]
[1727797091526,0.001,62613.0,62612.0,0.001644]
[1727797092498,0.48801513,62613.0,62612.0,0.001644]
[1727797092714,0.48801513,62613.0,62600.0,4e-05]
[1727797092715,0.872803,62613.0,62600.0,4e-05]
[1727797092956,0.872803,62613.0,62607.0,0.23945404]
[1727797092957,0.159723,62608.0,62607.0,0.23945404]
[1727797093209,0.159723,62608.0,62600.0,4e-05]
[1727797093210,0.1564578,62612.0,62600.0,4e-05]
[1727797093425,0.01061516,62608.0,62600.0,4e-05]
[1727797093652,0.159735,62604.0,62600.0,4e-05]
[1727797094113,0.01059135,62603.0,62600.0,4e-05]
[1727797094335,0.64675213,62608.0,62600.0,4e-05]
[1727797094336,0.32730413,62608.0,62600.0,4e-05]
[1727797094597,0.010563,62602.0,62601.0,0.36011926]
[1727797094859,0.23945404,62611.0,62601.0,0.1564578]
[1727797095067,0.23945404,62611.0,62610.0,0.159718]
[1727797095510,0.002,62619.0,62613.0,0.159709]
[1727797095741,0.002,62619.0,62614.0,0.159708]
[1727797095961,0.002,62619.0,62602.0,0.1]
[1727797095962,0.238991,62621.0,62610.0,0.319432]
[1727797096194,0.0793,62621.0,62610.0,0.319432]
[1727797096419,0.0793,62621.0,62612.0,0.319423]
[1727797096641,0.0793,62621.0,62613.0,0.159709]
[1727797097105,0.0793,62621.0,62615.0,0.159705]
[1727797097350,0.0793,62621.0,62615.0,0.159703]
[1727797097574,0.0793,62621.0,62611.0,0.23945404]
[1727797097575,0.21563592,62624.0,62618.0,0.23945404]
[1727797097797,0.21563592,62624.0,62612.0,0.1]
[1727797098021,0.21563592,62624.0,62621.0,0.159688]
[1727797098268,0.21563592,62624.0,62613.0,0.1564578]
[1727797098493,0.1906,62624.0,62622.0,0.159688]
[1727797098940,0.1906,62624.0,62615.0,0.001]
[1727797098941,0.1906,62624.0,62623.0,0.159685]
[1727797099218,0.319315,62634.0,62619.0,0.319391]
[1727797099219,0.1903,62633.0,62619.0,0.23945404]
[1727797099487,0.1903,62633.0,62620.0,0.1564578]
[1727797099955,0.319285,62640.0,62620.0,0.1564578]
[1727797099956,0.23945404,62635.0,62620.0,0.39591184]
[1727797099960,0.23945404,62635.0,62627.0,0.319349]
[1727797100180,0.23945404,62635.0,62634.0,0.159657]
[1727797100398,0.23945404,62642.0,62633.0,0.319319]
[1727797100651,0.23945404,62649.0,62634.0,0.1564578]
[1727797100902,0.23945404,62649.0,62645.0,0.319257]
[1727797101148,0.23945404,62649.0,62648.0,0.159622]
[1727797101369,0.000821,62659.0,62649.0,0.159619]
[1727797101598,0.000821,62659.0,62649.0,0.16116971]
[1727797102373,0.000821,62659.0,62649.0,0.159619]
[1727797104243,0.02513525,62650.0,62649.0,0.65553084]
[1727797104513,0.001121,62650.0,62649.0,0.9661378]
[1727797104766,0.001121,62650.0,62649.0,1.0484378]
[1727797105007,0.000121,62650.0,62649.0,0.5353768]
[1727797105453,0.001121,62650.0,62649.0,0.5443768]
[1727797105913,0.000121,62650.0,62649.0,0.77483084]
[1727797106212,0.000121,62650.0,62649.0,1.1052108]
[1727797106469,0.000821,62659.0,62658.0,0.264596]
[1727797106705,0.000821,62659.0,62658.0,0.74835793]
[1727797107205,0.0004,62679.0,62658.0,0.74835793]
[1727797107206,0.0004,62679.0,62678.0,0.259545]
[1727797107675,0.00800637,62679.0,62678.0,0.4160028]
[1727797107924,0.0004,62679.0,62678.0,0.4160028]
[1727797108179,0.0004,62679.0,62678.0,0.65545684]
[1727797108423,0.0004,62679.0,62678.0,0.4160028]
[1727797108930,0.0014,62679.0,62678.0,0.4220028]
[1727797109173,0.0014,62679.0,62678.0,0.43197488]
[1727797109427,0.0004,62679.0,62678.0,0.43097488]
[1727797109644,0.0004,62679.0,62678.0,0.46297488]
[1727797109862,0.0014,62679.0,62678.0,0.44097488]
[1727797110117,0.0014,62679.0,62678.0,0.43597488]
[1727797111296,0.0004,62679.0,62678.0,0.42597488]
[1727797111778,0.0014,62679.0,62678.0,0.43597488]
[1727797112258,0.0004,62679.0,62678.0,0.42597488]
[1727797112488,0.0014,62679.0,62678.0,0.43697488]
[1727797112721,0.0014,62679.0,62678.0,0.46897488]
[1727797112947,0.0014,62679.0,62678.0,0.47397488]
[1727797113176,0.0004,62679.0,62678.0,0.46297488]
[1727797114191,0.0004,62679.0,62678.0,1.14991988]
[1727797114436,0.0004,62679.0,62678.0,1.15191988]
[1727797114684,0.0004,62679.0,62678.0,1.14991988]
[1727797114944,0.0004,62679.0,62678.0,1.19283888]
[1727797115247,0.0014,62679.0,62678.0,0.70686088]
[1727797115443,0.0014,62679.0,62678.0,0.62578888]
[1727797115678,0.0004,62679.0,62678.0,0.61778888]
[1727797116137,0.0014,62679.0,62678.0,0.63178888]
[1727797116587,0.0004,62679.0,62678.0,0.61778888]
[1727797117320,0.0249984,62692.0,62691.0,0.259512]
[1727797117580,0.0249984,62692.0,62691.0,0.4159698]
[1727797118360,0.000822,62698.0,62697.0,0.259497]
[1727797118615,0.000822,62698.0,62697.0,0.4159548]
[1727797119637,0.000822,62698.0,62697.0,0.4209548]
[1727797119881,1e-06,62701.0,62700.0,0.308489]
[1727797120167,0.000822,62713.0,62712.0,0.164459]
[1727797120413,0.04751544,62725.0,62712.0,0.164459]
[1727797120414,0.04751544,62732.0,62728.0,0.1]
[1727797120627,0.23945404,62737.0,62730.0,0.159413]
[1727797120868,0.04791544,62739.0,62730.0,0.259413]
[1727797121122,0.0004,62739.0,62730.0,0.266413]
[1727797121373,0.0004,62739.0,62730.0,0.48222897]
[1727797121625,0.0004,62739.0,62730.0,1.2688638]
[1727797121880,0.0004,62739.0,62730.0,2.0386638]
[1727797122099,0.0004,62739.0,62730.0,1.6623778]
[1727797122573,0.0004,62739.0,62730.0,1.6520778]
[1727797122805,0.0011,62731.0,62730.0,0.4398708]
[1727797123348,0.0004,62739.0,62738.0,0.59369713]
[1727797123606,0.0004,62739.0,62738.0,0.78215493]
[1727797123823,1.0,62741.0,62740.0,0.308387]
[1727797123824,0.982617,62741.0,62740.0,0.308387]
[1727797124077,0.982617,62741.0,62740.0,0.4648448]
[1727797124296,0.982617,62741.0,62740.0,0.51420297]
[1727797124522,0.982617,62741.0,62740.0,1.1640308]
[1727797124789,0.982617,62741.0,62740.0,0.4648448]
[1727797125026,0.982617,62741.0,62740.0,0.51220297]
[1727797125264,0.982617,62741.0,62740.0,0.51420297]
[1727797125706,0.982617,62741.0,62740.0,0.4628448]
[1727797125922,0.982617,62741.0,62740.0,0.4478448]
[1727797126152,0.982617,62741.0,62740.0,0.4158448]
[1727797126369,0.982617,62741.0,62740.0,0.43894399]
[1727797126879,0.982617,62741.0,62740.0,0.33894399]
[1727797127146,0.982617,62741.0,62740.0,0.013]
[1727797127400,1.0075964,62741.0,62740.0,0.013]
[1727797127855,1.38649605,62741.0,62740.0,0.013]
[1727797128082,1.33490053,62741.0,62740.0,0.013]
[1727797128543,1.33490053,62741.0,62732.0,0.23945404]
[1727797128771,0.32730413,62735.0,62732.0,0.23945404]
[1727797129027,0.32730413,62740.0,62732.0,0.23945404]
[1727797129276,0.982617,62741.0,62733.0,0.23945404]
[1727797129533,0.982617,62741.0,62725.0,0.24941265]
[1727797129534,0.982617,62741.0,62740.0,0.159387]
[1727797129753,0.982617,62741.0,62740.0,0.160387]
[1727797130000,0.982617,62741.0,62740.0,0.001]
[1727797130001,0.97780537,62741.0,62740.0,0.001]
[1727797130257,0.97780537,62741.0,62739.0,0.15939]
[1727797130483,0.32730413,62739.0,62710.0,0.047]
[1727797130955,0.31878,62740.0,62736.0,0.23945404]
[1727797130956,0.318777,62740.0,62736.0,0.23945404]
[1727797130958,0.159395,62737.0,62736.0,0.23945404]
[1727797131233,0.318781,62739.0,62725.0,0.23945404]
[1727797131234,0.159398,62736.0,62730.0,0.15941]